bitfinex-derivatives/quotes_SOLF0:USTF0_20241025
["timestamp","ask_amount","ask_price","bid_price","bid_amount"]
[1729859950776,1.285,173.63,173.54,2.8826]
[1729859951082,5.7629,173.62,173.38,62.22]
[1729859951380,6.7629,173.62,173.41,3.736]
[1729859951585,8.85360698,173.46,173.41,12.58960698]
[1729859951881,8.85360698,173.46,173.45,2.8842]
[1729859952080,8.85360698,173.46,173.45,7.0442]
[1729859954181,2.8832,173.52,173.48,2.8836]
[1729859954373,8.85360698,173.49,173.48,2.8836]
[1729859956390,8.85360698,173.49,173.47,4.16]
[1729859956688,8.85360698,173.49,173.47,7.0438]
[1729859959183,8.85360698,173.49,173.47,2.8838]
[1729859959690,2.8833,173.51,173.47,2.8838]
[1729859959884,8.85360698,173.48,173.47,2.8838]
[1729859963383,2.8832,173.51,173.48,2.8836]
[1729859963583,8.85360698,173.49,173.48,2.8836]
[1729859969888,11.73720698,173.49,173.47,4.16]
[1729859970193,8.85360698,173.48,173.47,4.16]
[1729859971281,8.85360698,173.48,173.45,2.8842]
[1729859971487,8.85360698,173.46,173.45,7.0442]
[1729859975804,8.85360698,173.48,173.47,2.8838]
[1729859981604,1.2881,173.54,173.45,4.16]
[1729859981605,8.85360698,173.51,173.46,8.85360698]
[1729859982100,8.85360698,173.51,173.5,2.8834]
[1729859982304,8.85360698,173.51,173.5,7.0434]
[1729859987913,2.1895,173.61,173.5,4.16]
[1729859988105,8.85360698,173.55,173.5,13.01360698]
[1729859988711,8.85360698,173.55,173.54,2.8827]
[1729859989109,8.85360698,173.55,173.51,4.16]
[1729859989309,8.85360698,173.52,173.51,4.16]
[1729859990820,8.85360698,173.52,173.44,1.2692]
[1729859991015,8.85360698,173.46,173.45,7.0442]
[1729859996021,8.85360698,173.46,173.45,2.8842]
[1729859998614,8.85360698,173.46,173.44,7.0444]
[1729859998820,8.85360698,173.45,173.44,7.0444]
[1729860003218,8.85360698,173.45,173.39,1.1919]
[1729860003415,8.85360698,173.42,173.4,4.16]
[1729860004231,8.85360698,173.42,173.41,2.8848]
[1729860006736,8.85360698,173.42,173.41,7.0448]
[1729860009528,8.85360698,173.42,173.38,62.22]
[1729860009837,8.85360698,173.4,173.38,4.16]
[1729860010244,8.85360698,173.4,173.39,2.8852]
[1729860012545,1.1849,173.45,173.41,2.8847]
[1729860012738,8.85360698,173.42,173.41,2.8847]
[1729860012936,8.85360698,173.42,173.38,4.16]
[1729860014343,8.85360698,173.42,173.41,2.8849]
[1729860016548,8.85360698,173.44,173.4,8.85360698]
[1729860016949,2.8837,173.49,173.45,2.8841]
[1729860017134,8.85360698,173.46,173.45,2.8841]
[1729860023046,4.16,173.51,173.43,4.16]
[1729860023247,2.8836,173.49,173.46,2.884]
[1729860023559,8.85360698,173.47,173.46,2.884]
[1729860025850,5.3538,173.53,173.48,2.8836]
[1729860026043,8.85360698,173.49,173.48,2.8836]
[1729860027645,8.85360698,173.49,173.47,4.16]
[1729860027646,63.26,173.62,173.52,2.883]
[1729860027956,63.26,173.62,173.51,4.16]
[1729860027957,1.2325,173.59,173.51,4.16]
[1729860028151,8.85360698,173.53,173.52,2.883]
[1729860028453,1.2325,173.59,173.51,4.16]
[1729860028649,1.2325,173.59,173.51,13.01360698]
[1729860028952,8.85360698,173.56,173.51,13.01360698]
[1729860029355,1.2325,173.59,173.56,2.8824]
[1729860029555,8.85360698,173.57,173.56,2.8824]
[1729860030251,8.85360698,173.58,173.56,2.8824]
[1729860030451,3.8815,173.62,173.55,4.16]
[1729860030654,1.0,173.62,173.55,4.16]
[1729860030845,1.0,173.62,173.6,2.8817]
[1729860031049,8.85360698,173.61,173.6,2.8817]
[1729860031244,2.95059068,173.67,173.55,13.01360698]
[1729860031245,2.1791,173.7,173.56,8.85360698]
[1729860031454,8.85360698,173.62,173.61,2.8816]
[1729860032257,2.8808,173.66,173.62,2.8814]
[1729860032760,8.85360698,173.63,173.62,2.8814]
[1729860033358,1.2337,173.69,173.62,2.8814]
[1729860033660,8.85360698,173.63,173.62,2.8814]
[1729860034952,2.8807,173.66,173.62,2.8814]
[1729860035154,8.85360698,173.63,173.62,2.8814]
[1729860036359,2.8806,173.67,173.59,4.16]
[1729860036556,8.85360698,173.63,173.59,4.16]
[1729860037059,8.85360698,173.63,173.62,2.8814]
[1729860038355,2.8805,173.68,173.64,2.8809]
[1729860038554,8.85360698,173.67,173.63,4.16]
[1729860038761,8.85360698,173.67,173.64,4.16]
[1729860039066,8.85360698,173.67,173.65,2.8808]
[1729860051164,8.85360698,173.66,173.65,2.8808]
[1729860055966,8.85360698,173.66,173.57,1.2842]
[1729860056261,4.16,173.74,173.61,2.8815]
[1729860056262,8.85360698,173.62,173.61,2.8815]
[1729860056462,8.85360698,173.62,173.61,7.0415]
[1729860058664,8.85360698,173.64,173.61,4.16]
[1729860059062,8.85360698,173.65,173.61,4.16]
[1729860059258,8.85360698,173.65,173.62,2.8814]
[1729860059455,8.85360698,173.65,173.61,4.16]
[1729860060870,8.85360698,173.65,173.62,2.8814]
[1729860061069,8.85360698,173.65,173.61,4.16]
[1729860061572,8.85360698,173.65,173.61,13.01360698]
[1729860061869,8.85360698,173.65,173.62,1.2543]
[1729860062272,8.85360698,173.65,173.64,2.8811]
[1729860062968,8.85360698,173.65,173.62,1.2543]
[1729860062969,8.85360698,173.66,173.62,1.2543]
[1729860063167,8.85360698,173.66,173.65,2.8808]
[1729860063472,2.8803,173.69,173.65,4.16]
[1729860063674,8.85360698,173.68,173.65,4.16]
[1729860064366,8.85360698,173.68,173.66,2.8807]
[1729860064566,8.85360698,173.68,173.65,4.16]
[1729860064870,2.8802,173.7,173.65,4.16]
[1729860065070,8.85360698,173.68,173.65,4.16]
[1729860065266,8.85360698,173.68,173.67,2.8806]
[1729860066373,8.0271873,173.76,173.67,2.8806]
[1729860066572,8.85360698,173.68,173.67,2.8805]
[1729860067864,8.85360698,173.68,173.65,4.16]
[1729860067865,2.8807,173.67,173.65,4.16]
[1729860068071,8.85360698,173.66,173.65,4.16]
[1729860068470,8.85360698,173.66,173.64,7.041]
[1729860068670,2.8812,173.64,173.62,4.16]
[1729860068868,8.85360698,173.63,173.62,4.16]
[1729860072076,8.85360698,173.63,173.61,4.16]
[1729860072281,2.8815,173.62,173.58,4.1304]
[1729860072471,8.85360698,173.59,173.58,2.882]
[1729860072670,8.85360698,173.59,173.58,7.042]
[1729860074467,8.85360698,173.59,173.58,2.882]
[1729860074781,8.85360698,173.59,173.58,7.042]
[1729860075781,8.85360698,173.59,173.53,72.28120698]
[1729860076085,8.85360698,173.56,173.55,4.16]
[1729860076474,8.85360698,173.56,173.53,63.4276]
[1729860076675,8.85360698,173.55,173.53,63.4276]
[1729860076886,8.85360698,173.55,173.54,5.4222]
[1729860077183,8.85360698,173.55,173.54,4.16]
[1729860078478,8.85360698,173.55,173.54,7.0427]
[1729860078986,8.85360698,173.55,173.54,4.16]
[1729860079580,8.85360698,173.55,173.54,7.0427]
[1729860079989,8.85360698,173.55,173.54,4.16]
[1729860080781,2.8829,173.53,173.49,2.8834]
[1729860080982,8.85360698,173.5,173.47,2.4735]
[1729860081291,8.85360698,173.5,173.47,6.6335]
[1729860081485,8.85360698,173.5,173.48,2.8836]
[1729860082389,8.85360698,173.5,173.49,2.8835]
[1729860083388,7.9993,173.62,173.47,6.6335]
[1729860083592,2.8825,173.56,173.51,2.8832]
[1729860083793,4.16,173.57,173.51,2.8832]
[1729860084092,2.8827,173.54,173.51,2.8832]
[1729860085288,8.85360698,173.52,173.51,2.8832]
[1729860088498,8.85360698,173.52,173.47,6.6335]
[1729860088499,8.85360698,173.52,173.49,2.8834]
[1729860088687,8.85360698,173.5,173.49,2.8834]
[1729860088998,1.2583,173.56,173.47,6.6335]
[1729860089396,8.85360698,173.5,173.47,6.6335]
[1729860090497,1.2583,173.56,173.47,6.6335]
[1729860090892,8.85360698,173.5,173.47,6.6335]
[1729860091500,8.85360698,173.5,173.49,2.8835]
[1729860096201,8.85360698,173.5,173.48,2.8837]
[1729860096502,8.85360698,173.49,173.48,2.8837]
[1729860098403,2.8829,173.53,173.49,2.8834]
[1729860098404,8.85360698,173.5,173.49,2.8834]
[1729860102602,2.8828,173.54,173.49,2.8834]
[1729860102804,2.8828,173.54,173.5,2.8833]
[1729860103003,8.85360698,173.51,173.5,2.8833]
[1729860104602,2.5432,173.56,173.47,4.16]
[1729860104809,8.85360698,173.53,173.48,8.85360698]
[1729860105407,8.85360698,173.53,173.48,10.15690698]
[1729860107411,8.85360698,173.53,173.52,2.883]
[1729860108598,8.85360698,173.53,173.48,1.3033]
[1729860108599,8.85360698,173.53,173.47,4.16]
[1729860108806,1.2583,173.56,173.48,7.0436]
[1729860108807,8.85360698,173.49,173.48,7.0436]
[1729860114712,8.85360698,173.49,173.43,1.2738]
[1729860115013,2.8833,173.51,173.47,2.8838]
[1729860116211,2.8835,173.5,173.46,2.8839]
[1729860116411,8.85360698,173.47,173.46,2.8839]
[1729860120221,8.85360698,173.47,173.45,4.16]
[1729860120421,8.85360698,173.47,173.45,7.0442]
[1729860120620,1.2583,173.56,173.45,13.01360698]
[1729860120826,8.85360698,173.52,173.51,2.8832]
[1729860122229,2.8827,173.55,173.51,2.8832]
[1729860122428,8.85360698,173.53,173.52,2.883]
[1729860127230,4.1408,173.56,173.52,2.883]
[1729860127427,8.85360698,173.53,173.52,2.883]
[1729860131536,11.73650698,173.53,173.5,2.8833]
[1729860131731,8.85360698,173.51,173.5,2.8833]
[1729860133730,1.2583,173.56,173.49,4.16]
[1729860133937,8.85360698,173.53,173.49,4.16]
[1729860134536,4.1408,173.56,173.49,4.16]
[1729860134836,8.85360698,173.53,173.52,2.883]
[1729860139840,7.0419,173.59,173.55,2.8825]
[1729860140139,4.16,173.59,173.49,13.01360698]
[1729860140327,8.85360698,173.54,173.49,13.01360698]
[1729860140527,8.85360698,173.54,173.53,2.8829]
[1729860141326,2.882,173.59,173.54,2.8826]
[1729860141535,8.85360698,173.55,173.54,2.8826]
[1729860142842,5.3636,173.62,173.52,8.85360698]
[1729860143340,1.2036,173.62,173.59,2.8818]
[1729860143545,8.85360698,173.6,173.59,2.8818]
[1729860144038,1.2036,173.62,173.59,2.8818]
[1729860144235,4.16,173.65,173.61,2.8814]
[1729860144438,1.1822,173.66,173.61,2.8814]
[1729860144439,8.85360698,173.62,173.61,2.8814]
[1729860145038,2.881,173.65,173.61,2.8814]
[1729860145234,1.1822,173.66,173.61,2.8814]
[1729860145540,1.1822,173.66,173.63,2.8811]
[1729860145738,8.85360698,173.64,173.59,4.16]
[1729860145939,1.1822,173.66,173.59,4.16]
[1729860145940,8.85360698,173.61,173.59,4.16]
[1729860146843,8.85360698,173.61,173.6,2.8817]
[1729860150645,8.85360698,173.61,173.59,7.0418]
[1729860150848,8.85360698,173.6,173.59,7.0418]
[1729860152140,11.73540698,173.6,173.53,1.2081]
[1729860152342,8.85360698,173.55,173.54,4.16]
[1729860153248,8.85360698,173.55,173.54,7.0427]
[1729860156543,8.85360698,173.55,173.54,2.8827]
[1729860156746,8.85360698,173.55,173.54,7.0427]
[1729860157448,8.85360698,173.55,173.54,2.8827]
[1729860157650,8.85360698,173.55,173.54,7.0427]
[1729860160650,8.85360698,173.58,173.56,2.8823]
[1729860160857,8.85360698,173.58,173.54,4.16]
[1729860161650,8.85360698,173.58,173.55,2.8824]
[1729860162255,2.882,173.59,173.55,2.8824]
[1729860162456,8.85360698,173.57,173.55,2.8824]
[1729860163353,8.85360698,173.57,173.54,4.16]
[1729860163354,5.4504,173.65,173.54,4.16]
[1729860163552,5.4504,173.65,173.6,2.8817]
[1729860163553,8.85360698,173.61,173.6,2.8817]
[1729860165053,0.9838,173.69,173.58,4.16]
[1729860165254,5.1438,173.69,173.59,8.85360698]
[1729860165464,1.184,173.7,173.59,8.85360698]
[1729860165663,8.85360698,173.64,173.63,2.8811]
[1729860168759,2.8807,173.67,173.63,2.8811]
[1729860169061,8.85360698,173.64,173.63,2.8811]
[1729860170361,8.85360698,173.64,173.59,4.16]
[1729860170665,8.85360698,173.6,173.59,4.16]
[1729860170960,8.85360698,173.6,173.58,2.8819]
[1729860171160,8.85360698,173.59,173.57,1.1887]
[1729860172255,8.85360698,173.59,173.58,2.8821]
[1729860174564,1.2258,173.66,173.57,10.04230698]
[1729860174863,5.344,173.7,173.59,8.85360698]
[1729860175063,8.85360698,173.65,173.6,4.16]
[1729860175265,8.85360698,173.65,173.63,2.8811]
[1729860179560,11.73460698,173.65,173.62,2.8813]
[1729860179761,8.85360698,173.63,173.62,2.8813]
[1729860183158,8.85360698,173.63,173.58,1.2802]
[1729860183159,11.73500698,173.63,173.59,2.8818]
[1729860183367,8.85360698,173.61,173.59,2.8818]
[1729860184365,8.85360698,173.61,173.59,2.8817]
[1729860189966,5.344,173.7,173.62,2.8813]
[1729860189967,2.8807,173.67,173.62,2.8813]
[1729860190164,5.344,173.7,173.62,2.8813]
[1729860190165,8.85360698,173.64,173.62,2.8813]
[1729860190665,1.2191,173.73,173.62,4.14]
[1729860190666,4.14,173.72,173.62,4.14]
[1729860190972,8.85360698,173.67,173.62,4.14]
[1729860191170,1.2191,173.73,173.62,4.14]
[1729860191371,8.85360698,173.67,173.65,2.8808]
[1729860192274,8.85360698,173.67,173.66,2.8807]
[1729860205879,2.8808,173.66,173.63,2.8812]
[1729860206184,8.85360698,173.64,173.63,2.8812]
[1729860206486,8.85360698,173.64,173.62,4.14]
[1729860206680,11.73470698,173.64,173.62,4.14]
[1729860207379,11.73470698,173.64,173.61,2.8815]
[1729860207575,8.85360698,173.62,173.61,2.8815]
[1729860208177,8.85360698,173.62,173.6,2.8817]
[1729860209683,8.85360698,173.62,173.61,2.8816]
[1729860210483,1.2701,173.69,173.59,4.14]
[1729860210880,8.85360698,173.64,173.59,12.99360698]
[1729860211584,8.85360698,173.64,173.61,2.8815]
[1729860212385,8.85360698,173.63,173.61,2.8815]
[1729860214479,4.14,173.7,173.59,12.99360698]
[1729860214679,8.85360698,173.65,173.63,2.8811]
[1729860214992,8.85360698,173.65,173.59,12.99360698]
[1729860215286,8.85360698,173.65,173.59,14.18070698]
[1729860215488,8.85360698,173.65,173.64,2.8811]
[1729860219187,2.8806,173.67,173.64,2.8811]
[1729860219391,8.85360698,173.65,173.64,2.8811]
[1729860221602,8.85360698,173.66,173.65,2.8808]
[1729860222004,8.85360698,173.66,173.63,4.14]
[1729860222398,8.85360698,173.66,173.64,2.881]
[1729860223309,8.85360698,173.66,173.63,4.14]
[1729860223508,1.2191,173.73,173.65,2.8809]
[1729860223509,8.85360698,173.67,173.65,2.8809]
[1729860223801,8.85360698,173.67,173.63,12.99360698]
[1729860224699,2.8802,173.7,173.66,2.8807]
[1729860225103,8.85360698,173.69,173.66,2.8807]
[1729860227009,8.85360698,173.69,173.64,8.85360698]
[1729860227214,8.85360698,173.69,173.67,2.8805]
[1729860227604,8.85360698,173.69,173.64,8.85360698]
[1729860228604,8.85360698,173.68,173.65,2.8809]
[1729860228909,8.85360698,173.68,173.64,8.85360698]
[1729860229207,2.8799,173.71,173.68,2.8804]
[1729860229409,8.85360698,173.69,173.68,2.8804]
[1729860229708,2.8799,173.71,173.68,2.8804]
[1729860229909,8.85360698,173.69,173.68,2.8804]
[1729860231106,2.8799,173.71,173.68,2.8804]
[1729860231410,8.85360698,173.69,173.68,2.8804]
[1729860232203,2.8799,173.71,173.68,2.8804]
[1729860232403,2.8797,173.73,173.67,12.99360698]
[1729860232606,8.85360698,173.72,173.68,8.85360698]
[1729860233606,8.85360698,173.72,173.69,2.8802]
[1729860233911,8.85360698,173.72,173.68,8.85360698]
[1729860234209,8.85360698,173.72,173.7,2.88]
[1729860234910,8.85360698,173.72,173.7,2.8799]
[1729860235303,8.85360698,173.74,173.68,8.85360698]
[1729860235502,8.85360698,173.74,173.68,10.10360698]
[1729860236103,8.85360698,173.74,173.71,2.8798]
[1729860236505,2.8793,173.75,173.71,2.8798]
[1729860236705,8.85360698,173.74,173.71,2.8798]
[1729860237108,8.85360698,173.72,173.71,2.8798]
[1729860238206,2.8793,173.75,173.71,2.8798]
[1729860238406,8.85360698,173.73,173.71,2.8798]
[1729860240015,8.85360698,173.73,173.72,2.8797]
[1729860240412,2.4833,173.79,173.71,4.14]
[1729860240712,8.85360698,173.75,173.73,2.8794]
[1729860241311,2.4833,173.79,173.75,2.8792]
[1729860241312,2.8788,173.78,173.75,2.8792]
[1729860241614,1.2857,173.79,173.73,8.85360698]
[1729860241615,8.85360698,173.77,173.73,8.85360698]
[1729860242115,8.85360698,173.77,173.75,2.8791]
[1729860243716,8.85360698,173.77,173.72,8.85360698]
[1729860244017,8.85360698,173.77,173.74,2.8793]
[1729860244418,1.2857,173.79,173.74,2.8793]
[1729860244419,8.85360698,173.75,173.74,2.8793]
[1729860245609,8.85360698,173.75,173.7,1.2233]
[1729860245808,8.85360698,173.73,173.71,7.0198]
[1729860246013,8.85360698,173.73,173.71,4.14]
[1729860246416,8.85360698,173.73,173.71,7.0199]
[1729860249617,2.8792,173.76,173.72,2.8797]
[1729860249922,8.85360698,173.73,173.72,2.8797]
[1729860250222,8.85360698,173.73,173.71,7.0198]
[1729860250419,8.85360698,173.72,173.71,7.0198]
[1729860260324,8.85360698,173.73,173.72,2.8796]
[1729860260524,5.4257,173.79,173.71,4.14]
[1729860260525,8.85360698,173.75,173.71,4.14]
[1729860260828,8.85360698,173.76,173.74,2.8794]
[1729860261723,8.85360698,173.76,173.73,2.8795]
[1729860262931,8.85360698,173.76,173.74,2.8794]
[1729860263831,8.85360698,173.75,173.73,2.8795]
[1729860266837,8.85360698,173.75,173.71,4.14]
[1729860267139,8.85360698,173.75,173.73,2.8794]
[1729860268624,8.85360698,173.75,173.69,1.2793]
[1729860268824,1.2857,173.79,173.69,1.2793]
[1729860268825,8.85360698,173.72,173.7,4.14]
[1729860269026,8.85360698,173.7,173.69,7.0201]
[1729860270027,1.2749,173.78,173.69,4.14]
[1729860270228,8.85360698,173.73,173.69,12.99360698]
[1729860271029,8.85360698,173.73,173.7,2.88]
[1729860271234,8.85360698,173.73,173.69,12.99360698]
[1729860272242,8.85360698,173.73,173.71,2.8798]
[1729860273936,4.14,173.78,173.69,12.99360698]
[1729860274137,8.85360698,173.75,173.73,2.8794]
[1729860274638,8.85360698,173.75,173.74,2.8794]
[1729860275546,8.85360698,173.77,173.73,12.99360698]
[1729860275746,8.85360698,173.78,173.73,12.99360698]
[1729860276134,4.14,173.82,173.73,12.99360698]
[1729860276335,2.8782,173.81,173.77,2.8788]
[1729860276751,8.85360698,173.8,173.77,2.8788]
[1729860279056,8.85360698,173.8,173.78,2.8787]
[1729860282561,2.8782,173.81,173.78,2.8787]
[1729860282562,8.85360698,173.79,173.78,2.8787]
[1729860284161,8.85360698,173.79,173.77,7.0189]
[1729860286763,8.85360698,173.79,173.7,2.4895]
[1729860286966,8.85360698,173.74,173.71,4.14]
[1729860287461,8.85360698,173.72,173.71,4.14]
[1729860288762,8.85360698,173.72,173.69,4.14]
[1729860288962,8.85360698,173.7,173.69,4.14]
[1729860289762,8.85360698,173.7,173.69,7.0202]
[1729860300667,8.85360698,173.7,173.66,2.8806]
[1729860300871,8.85360698,173.67,173.66,7.0206]
[1729860301974,2.88,173.71,173.67,2.8805]
[1729860302174,8.85360698,173.68,173.67,2.8805]
[1729860302365,8.85360698,173.7,173.66,4.14]
[1729860302570,8.85360698,173.67,173.66,4.14]
[1729860304966,0.9828,173.76,173.66,4.14]
[1729860305163,8.85360698,173.68,173.66,7.0207]
[1729860305777,8.85360698,173.67,173.66,7.0207]
[1729860305977,8.85360698,173.67,173.65,2.8808]
[1729860306176,8.85360698,173.67,173.65,7.0208]
[1729860306670,4.14,173.75,173.65,4.14]
[1729860306875,8.85360698,173.67,173.65,4.14]
[1729860307076,8.85360698,173.68,173.65,4.14]
[1729860307767,8.85360698,173.7,173.65,4.14]
[1729860308073,8.85360698,173.71,173.66,8.85360698]
[1729860308680,2.8797,173.73,173.69,2.8802]
[1729860308877,8.85360698,173.71,173.69,2.8802]
[1729860316078,8.85360698,173.71,173.65,14.26420698]
[1729860316279,0.9828,173.76,173.66,7.0207]
[1729860316472,8.85360698,173.67,173.66,7.0207]
[1729860316672,8.85360698,173.67,173.66,4.14]
[1729860318882,1.3056,173.72,173.66,4.14]
[1729860319085,8.85360698,173.68,173.67,2.8806]
[1729860320082,0.9828,173.76,173.66,4.14]
[1729860320083,8.85360698,173.7,173.66,4.14]
[1729860320278,8.85360698,173.7,173.69,2.8802]
[1729860322683,2.8797,173.73,173.69,2.8802]
[1729860322882,8.85360698,173.71,173.69,2.8802]
[1729860324784,8.85360698,173.71,173.66,4.14]
[1729860324785,2.8795,173.74,173.7,2.88]
[1729860325083,8.85360698,173.71,173.7,2.88]
[1729860326190,8.85360698,173.71,173.66,6.5881]
[1729860326391,8.85360698,173.7,173.69,2.8801]
[1729860330492,8.85360698,173.7,173.69,7.0201]
[1729860333707,1.2171,173.77,173.69,4.14]
[1729860333897,8.85360698,173.71,173.7,2.88]
[1729860334596,8.85360698,173.71,173.69,7.0201]
[1729860336101,2.8796,173.73,173.7,2.8801]
[1729860336300,11.73320698,173.73,173.7,2.8801]
[1729860340807,8.85360698,173.71,173.7,2.8801]
[1729860341006,2.8802,173.7,173.68,4.14]
[1729860341208,11.73380698,173.7,173.68,4.14]
[1729860341402,8.85360698,173.7,173.68,4.14]
[1729860341813,11.73370698,173.7,173.68,4.14]
[1729860342009,11.73370698,173.7,173.67,2.8805]
[1729860342210,2.8808,173.66,173.63,4.14]
[1729860342419,8.85360698,173.64,173.63,4.14]
[1729860347718,8.85360698,173.64,173.63,7.0212]
[1729860348624,1.2361,173.71,173.63,4.14]
[1729860348918,8.85360698,173.67,173.63,4.14]
[1729860349222,8.85360698,173.67,173.63,12.99360698]
[1729860349418,8.85360698,173.7,173.64,8.85360698]
[1729860349615,8.85360698,173.7,173.66,8.85360698]
[1729860349816,8.85360698,173.7,173.67,4.14]
[1729860350523,8.85360698,173.7,173.68,2.8803]
[1729860354529,8.85360698,173.69,173.67,4.14]
[1729860354724,11.73380698,173.69,173.66,4.14]
[1729860354922,8.85360698,173.67,173.66,4.14]
[1729860356432,8.85360698,173.67,173.64,7.0211]
[1729860356622,8.85360698,173.65,173.64,4.14]
[1729860357222,8.85360698,173.65,173.64,7.0211]
[1729860360734,8.85360698,173.66,173.64,7.0211]
[1729860362132,2.8805,173.68,173.64,7.0211]
[1729860362330,2.8799,173.71,173.64,4.14]
[1729860362635,8.85360698,173.65,173.62,759.62692]
[1729860362935,8.85360698,173.63,173.62,763.76692]
[1729860368344,8.85360698,173.63,173.62,766.64832]
[1729860375144,8.85360698,173.63,173.62,762.50832]
[1729860378545,2.88,173.71,173.62,768.48052698]
[1729860378755,8.85360698,173.71,173.66,8.85360698]
[1729860379043,8.85360698,173.71,173.66,12.99360698]
[1729860379546,8.85360698,173.71,173.69,2.8802]
[1729860379841,1.2048,173.75,173.68,8.85360698]
[1729860380048,8.85360698,173.73,173.68,8.85360698]
[1729860380745,8.85360698,173.73,173.7,2.8799]
[1729860380937,8.85360698,173.72,173.7,2.8799]
[1729860386049,8.85360698,173.72,173.68,8.85360698]
[1729860386245,8.85360698,173.75,173.7,8.85360698]
[1729860386552,8.85360698,173.75,173.7,12.99360698]
[1729860386848,4.14,173.78,173.7,12.99360698]
[1729860387043,11.73280698,173.76,173.71,8.85360698]
[1729860388046,8.85360698,173.75,173.71,8.85360698]
[1729860388245,8.85360698,173.75,173.73,2.8795]
[1729860392647,11.73280698,173.75,173.73,2.8795]
[1729860392852,11.73280698,173.75,173.7,4.14]
[1729860393055,11.73280698,173.75,173.72,2.8797]
[1729860393657,11.73330698,173.73,173.7,7.02]
[1729860393849,11.73330698,173.73,173.67,10.03430698]
[1729860394155,11.73330698,173.73,173.68,4.14]
[1729860395349,11.73330698,173.73,173.7,2.8799]
[1729860397853,8.85360698,173.73,173.68,4.14]
[1729860398050,8.85360698,173.73,173.69,2.8802]
[1729860398752,4.14,173.81,173.69,11.73380698]
[1729860398953,8.85360698,173.74,173.69,11.73380698]
[1729860399357,8.85360698,173.74,173.69,8.85360698]
[1729860399554,11.73310698,173.74,173.7,2.8801]
[1729860399758,11.73310698,173.74,173.69,8.85360698]
[1729860400556,11.73310698,173.74,173.7,2.88]
[1729860402165,8.85360698,173.74,173.7,2.88]
[1729860402460,2.8796,173.73,173.7,2.88]
[1729860409666,8.85360698,173.74,173.69,4.14]
[1729860409866,11.73310698,173.74,173.69,4.14]
[1729860410665,11.73310698,173.74,173.7,2.8799]
[1729860412973,11.73310698,173.74,173.69,4.14]
[1729860413268,11.73310698,173.74,173.71,2.8799]
[1729860415265,2.8791,173.76,173.73,2.8794]
[1729860415468,8.85360698,173.75,173.73,2.8794]
[1729860415967,2.5123,173.84,173.73,4.12]
[1729860416163,2.5123,173.84,173.74,8.85360698]
[1729860416367,2.5123,173.84,173.75,8.85360698]
[1729860416368,6.6323,173.84,173.75,8.85360698]
[1729860416563,8.85360698,173.8,173.75,8.85360698]
[1729860416968,8.85360698,173.8,173.74,1.2922]
[1729860416969,2.8781,173.82,173.79,2.8784]
[1729860417163,8.85360698,173.81,173.79,2.8784]
[1729860420473,8.85360698,173.81,173.77,4.12]
[1729860420668,8.85360698,173.8,173.78,2.8787]
[1729860424178,8.85360698,173.79,173.74,1.2922]
[1729860424482,4.12,173.83,173.75,4.12]
[1729860424784,5.3645,173.83,173.74,4.12]
[1729860424975,5.3645,173.83,173.75,2.8792]
[1729860425679,2.8789,173.78,173.75,2.8792]
[1729860425885,8.85360698,173.76,173.74,4.12]
[1729860426479,8.85360698,173.75,173.74,4.12]
[1729860427683,8.85360698,173.75,173.72,4.12]
[1729860427883,8.85360698,173.73,173.72,4.12]
[1729860432381,11.73320698,173.73,173.72,4.12]
[1729860432983,8.85360698,173.73,173.72,4.12]
[1729860436290,8.85360698,173.73,173.71,2.8798]
[1729860442596,8.85360698,173.76,173.7,8.85360698]
[1729860442999,8.85360698,173.76,173.71,1.2106]
[1729860443196,8.85360698,173.76,173.73,2.8794]
[1729860443406,8.85360698,173.76,173.73,6.9994]
[1729860444909,2.8788,173.78,173.75,2.8792]
[1729860445108,8.85360698,173.78,173.73,12.97360698]
[1729860445301,8.85360698,173.78,173.75,8.85360698]
[1729860445702,8.85360698,173.78,173.76,2.8789]